bitfinex-derivatives/quotes_BNBF0:USTF0_20251010
["timestamp","ask_amount","ask_price","bid_price","bid_amount"]
[1760061808593,0.1960338,1249.2,1248.5,1.16794692]
[1760061808893,0.1960338,1249.2,1248.6,0.56961871]
[1760061809092,0.1960338,1249.2,1248.7,0.56961871]
[1760061809392,0.1960338,1249.2,1248.8,0.56961871]
[1760061809587,0.1960338,1249.2,1248.9,0.56961871]
[1760061809789,0.1960338,1249.2,1249.0,0.56961871]
[1760061809990,0.1960338,1249.2,1249.1,0.56944514]
[1760061813293,0.1960338,1249.2,1248.6,0.59832821]
[1760061813498,0.1960338,1249.2,1248.7,0.56940491]
[1760061813693,0.1960338,1249.2,1248.8,0.56940491]
[1760061813992,0.1960338,1249.2,1248.9,0.56940491]
[1760061814297,0.1960338,1249.2,1248.5,0.59832821]
[1760061814496,0.1960338,1249.2,1248.6,0.56931473]
[1760061814694,0.1960338,1249.2,1248.7,0.56931473]
[1760061814893,0.1960338,1249.2,1248.8,0.56931473]
[1760061815096,0.1960338,1249.2,1248.9,0.56931473]
[1760061815397,0.1960338,1249.2,1248.5,0.59832821]
[1760061815597,0.1960338,1249.2,1248.6,0.56923461]
[1760061815897,0.1960338,1249.2,1248.7,0.56923461]
[1760061816094,0.1960338,1249.2,1248.8,0.56923461]
[1760061816393,0.1960338,1249.2,1248.9,0.56923461]
[1760061816598,0.1960338,1249.2,1249.0,0.56917874]
[1760061816798,0.1960338,1249.2,1248.3,0.59832821]
[1760061816995,0.1960338,1249.2,1248.4,0.56918663]
[1760061817194,0.1960338,1249.2,1248.5,0.56918663]
[1760061817393,0.1960338,1249.2,1248.6,0.56918663]
[1760061817696,0.1960338,1249.2,1248.7,0.56918663]
[1760061817894,0.1960338,1249.2,1248.8,0.56918663]
[1760061818098,0.1960338,1249.2,1248.9,0.56918663]
[1760061818296,0.1960338,1249.2,1249.0,0.56918663]
[1760061818599,0.1960338,1249.2,1248.3,0.59832821]
[1760061818801,0.1960338,1249.2,1248.4,0.56907414]
[1760061819101,0.1960338,1249.2,1248.5,0.56907414]
[1760061819299,0.1960338,1249.2,1248.3,0.59832821]
[1760061819300,0.1960338,1249.2,1248.6,0.56907414]
[1760061819502,0.1960338,1249.2,1248.7,0.56907414]
[1760061819702,0.1960338,1249.2,1248.8,0.56907414]
[1760061820001,0.1960338,1249.2,1248.9,0.56907414]
[1760061820198,0.1960338,1249.2,1248.2,0.59832821]
[1760061820406,0.1960338,1249.2,1248.3,0.56895711]
[1760061820605,0.1960338,1249.2,1248.4,0.56895711]
[1760061820804,0.1960338,1249.2,1248.5,0.56895711]
[1760061821104,0.1960338,1249.2,1248.6,0.56895711]
[1760061821299,0.1960338,1249.2,1248.7,0.56895711]
[1760061821499,0.1960338,1249.2,1248.0,0.59832821]
[1760061821701,0.1960338,1249.2,1248.1,0.56892245]
[1760061821905,0.1960338,1249.2,1248.2,0.56892245]
[1760061822205,0.1960338,1249.2,1248.3,0.56892245]
[1760061822400,0.1960338,1249.2,1248.4,0.56892245]
[1760061822600,0.1960338,1249.2,1248.5,0.56892245]
[1760061822800,0.1960338,1249.2,1247.9,0.59832821]
[1760061823107,0.1960338,1249.2,1248.0,0.56880193]
[1760061823406,0.1960338,1249.2,1248.1,0.56880193]
[1760061823605,0.1960338,1249.2,1248.2,0.56880193]
[1760061823800,0.1960338,1249.2,1248.3,0.56880193]
[1760061824105,0.1960338,1249.2,1247.8,0.59832821]
[1760061824303,0.1960338,1249.2,1247.9,0.56861782]
[1760061824507,0.1960338,1249.2,1248.0,0.56861782]
[1760061824704,0.1960338,1249.2,1248.1,0.56861782]
[1760061825006,0.1960338,1249.2,1248.2,0.56861782]
[1760061825303,0.1960338,1249.2,1248.3,0.56861782]
[1760061825506,0.1960338,1249.2,1247.8,0.59832821]
[1760061825702,0.1960338,1249.2,1247.9,0.56824291]
[1760061825901,0.1960338,1249.2,1248.0,0.56824291]
[1760061826102,0.1960338,1249.2,1248.1,0.56824291]
[1760061826302,0.1960338,1249.2,1248.2,0.56824291]
[1760061826506,0.1960338,1249.2,1247.7,0.59832821]
[1760061826704,0.1960338,1249.2,1247.8,0.5680216]
[1760061827007,0.1960338,1249.2,1247.9,0.5680216]
[1760061827302,0.1960338,1249.2,1248.0,0.5680216]
[1760061827506,0.1960338,1249.2,1248.1,0.5680216]
[1760061827703,0.1960338,1249.2,1248.2,0.5680216]
[1760061827901,0.1960338,1249.2,1247.7,0.59832821]
[1760061828204,0.1960338,1249.2,1247.8,0.56567454]
[1760061828407,0.1960338,1249.2,1247.9,0.56567454]
[1760061828602,0.1960338,1249.2,1247.1,0.59832821]
[1760061828902,0.1960338,1249.2,1247.2,0.5657236]
[1760061829105,0.1960338,1249.2,1247.3,0.5657236]
[1760061829308,0.1960338,1249.2,1247.4,0.5657236]
[1760061829504,0.1960338,1249.2,1246.9,0.59832821]
[1760061829704,0.1960338,1249.2,1247.0,0.55299732]
[1760061829916,0.1960338,1249.2,1247.1,0.55299732]
[1760061830109,0.1960338,1249.2,1247.2,0.55299732]
[1760061830309,0.1960338,1249.2,1247.3,0.55299732]
[1760061830504,0.1960338,1249.2,1247.4,0.55299732]
[1760061830708,0.1960338,1249.2,1246.9,0.59832821]
[1760061830906,0.1960338,1249.2,1247.0,0.55255024]
[1760061831107,0.1960338,1249.2,1247.1,1.15087845]
[1760061831305,0.1960338,1249.2,1247.2,1.15087845]
[1760061831511,0.1960338,1249.2,1247.3,0.55255024]
[1760061831712,0.1960338,1249.2,1247.4,0.55255024]
[1760061832008,0.1960338,1249.2,1247.5,0.55255024]
[1760061832207,0.1960338,1249.2,1247.6,0.55255024]
[1760061832411,0.1960338,1249.2,1247.7,0.55255024]
[1760061832611,0.1960338,1249.2,1247.2,0.59832821]
[1760061832807,0.1960338,1249.2,1247.3,1.15031878]
[1760061833011,0.1960338,1249.2,1247.4,0.55199057]
[1760061833211,0.1960338,1249.2,1247.5,0.55199057]
[1760061833408,0.1960338,1249.2,1247.6,0.55199057]
[1760061833610,0.1960338,1249.2,1247.7,0.55199057]
[1760061833812,0.1960338,1249.2,1247.8,0.55199057]
[1760061834009,0.1960338,1249.2,1247.2,0.59832821]
[1760061834311,0.1960338,1249.2,1247.3,0.55191109]
[1760061834512,0.1960338,1249.2,1247.4,0.55191109]
[1760061834713,0.1960338,1249.2,1247.5,0.55191109]
[1760061834912,0.1960338,1249.2,1247.6,0.55191109]
[1760061835112,0.1960338,1249.2,1247.7,0.55191109]
[1760061835409,0.1960338,1249.2,1247.8,0.55191109]
[1760061835612,0.1960338,1249.2,1247.1,0.59832821]
[1760061835912,0.1960338,1249.2,1247.2,0.55163643]
[1760061836213,0.1960338,1249.2,1247.3,0.55163643]
[1760061836412,0.1960338,1249.2,1247.4,0.55163643]
[1760061836714,0.1960338,1249.2,1247.5,0.55163643]
[1760061837011,0.1960338,1249.2,1247.6,0.55163643]
[1760061837212,0.1960338,1249.2,1246.9,0.19928769]
[1760061837213,0.1960338,1249.2,1247.7,0.55163643]
[1760061837414,0.1960338,1249.2,1247.2,0.59832821]
[1760061837708,0.1960338,1249.2,1247.3,0.55141791]
[1760061838008,0.1960338,1249.2,1247.4,0.55141791]
[1760061838211,0.1960338,1249.2,1247.5,0.55141791]
[1760061838410,0.1960338,1249.2,1247.6,0.55141791]
[1760061838609,0.1960338,1249.2,1247.7,0.55141791]
[1760061838813,0.1960338,1249.2,1247.8,0.55141791]
[1760061839012,0.1960338,1249.2,1247.3,0.59832821]
[1760061839212,0.1960338,1249.2,1247.4,0.55131939]
[1760061839410,0.1960338,1249.2,1247.5,0.55131939]
[1760061839611,0.1960338,1249.2,1247.6,0.55131939]
[1760061839808,0.1960338,1249.2,1247.7,0.55131939]
[1760061840012,0.1960338,1249.2,1247.8,0.55131939]
[1760061840212,0.1960338,1249.2,1247.4,0.59832821]
[1760061840412,0.1960338,1249.2,1247.1,0.79758299]
[1760061840413,0.1960338,1249.2,1247.5,1.1496194]
[1760061840710,0.1960338,1249.2,1247.6,1.1496194]
[1760061840907,0.1960338,1249.2,1247.7,0.55129119]
[1760061841112,0.1960338,1249.2,1247.8,0.55129119]
[1760061841313,0.1960338,1249.2,1247.9,0.55129119]
[1760061841510,0.1960338,1249.2,1248.0,0.55129119]
[1760061841715,0.1960338,1249.2,1247.4,0.59832821]
[1760061841916,0.1960338,1249.2,1247.6,0.59832821]
[1760061842112,0.1960338,1249.2,1247.7,0.5513146]
[1760061842316,0.1960338,1249.2,1247.8,0.5513146]
[1760061842517,0.1960338,1249.2,1247.9,0.5513146]
[1760061842719,0.1960338,1249.2,1248.0,0.5513146]
[1760061842915,0.1960338,1249.2,1247.6,0.59832821]
[1760061843119,0.1960338,1249.2,1247.7,0.55143565]
[1760061843319,0.1960338,1249.2,1247.8,0.55143565]
[1760061843521,0.1960338,1249.2,1247.9,0.55143565]
[1760061843716,0.1960338,1249.2,1248.0,0.55143565]
[1760061843918,0.1960338,1249.2,1247.6,0.59832821]
[1760061844220,0.1960338,1249.2,1247.7,0.55154667]
[1760061844418,0.1960338,1249.2,1247.8,0.55154667]
[1760061844619,0.1960338,1249.2,1247.9,0.55154667]
[1760061844920,0.1960338,1249.2,1248.0,0.55154667]
[1760061845120,0.1960338,1249.2,1248.1,0.55154667]
[1760061845324,0.1960338,1249.2,1248.2,0.55154667]
[1760061845521,0.1960338,1249.2,1248.3,0.55154667]
[1760061845724,0.1960338,1249.2,1247.7,0.59832821]
[1760061845925,0.1960338,1249.2,1247.8,0.55182045]
[1760061846126,0.1960338,1249.2,1248.0,0.59832821]
[1760061846325,0.1960338,1249.2,1248.1,0.55182045]
[1760061846621,0.1960338,1249.2,1248.2,0.55182045]
[1760061846825,0.1960338,1249.2,1248.3,0.55182045]
[1760061847021,0.1960338,1249.2,1248.4,0.55182045]
[1760061847223,0.1960338,1249.2,1248.0,0.59832821]
[1760061847527,0.1960338,1249.2,1248.1,0.55258404]
[1760061847724,0.1960338,1249.2,1248.2,0.55258404]
[1760061847921,0.1960338,1249.2,1248.3,0.55258404]
[1760061848121,0.1960338,1249.2,1247.8,0.59832821]
[1760061848321,0.1960338,1249.2,1247.9,0.55260931]
[1760061848522,0.1960338,1249.2,1248.0,0.55260931]
[1760061848726,0.1960338,1249.2,1248.1,0.55260931]
[1760061848924,0.1960338,1249.2,1248.2,0.55260931]
[1760061849128,0.1960338,1249.2,1248.3,0.55260931]
[1760061849323,0.1960338,1249.2,1247.6,0.59832821]
[1760061849624,0.1960338,1249.2,1247.7,1.15154922]
[1760061849829,0.1960338,1249.2,1247.8,0.55322101]
[1760061850024,0.1960338,1249.2,1247.9,0.55322101]
[1760061850226,0.1960338,1249.2,1248.0,0.55322101]
[1760061850424,0.1960338,1249.2,1248.1,0.55322101]
[1760061850630,0.1960338,1249.2,1248.2,0.55322101]
[1760061850930,0.1960338,1249.2,1248.3,0.55322101]
[1760061851131,0.1960338,1249.2,1247.8,0.59832821]
[1760061851328,0.1960338,1249.2,1247.9,1.15180474]
[1760061851527,0.1960338,1249.2,1248.0,0.55347653]
[1760061851726,0.1960338,1249.2,1248.1,0.55347653]
[1760061852028,0.1960338,1249.2,1247.6,0.99687068]
[1760061852029,0.1960338,1249.2,1248.2,0.55347653]
[1760061852332,0.1960338,1249.2,1248.3,0.55347653]
[1760061852526,0.1960338,1249.2,1247.6,0.19928769]
[1760061852527,0.1960338,1249.2,1248.4,0.55347653]
[1760061852731,0.1960338,1249.2,1247.7,0.59832821]
[1760061852931,0.1960338,1249.2,1247.8,0.55396225]
[1760061853131,0.1960338,1249.2,1247.9,0.55396225]
[1760061853329,0.1960338,1249.2,1248.0,0.55396225]
[1760061853532,0.1960338,1249.2,1248.1,0.55396225]
[1760061853729,0.1960338,1249.2,1248.2,0.55396225]
[1760061853932,0.1960338,1249.2,1248.3,0.55396225]
[1760061854133,0.1960338,1249.2,1247.7,0.59832821]
[1760061854134,0.1960338,1249.2,1248.4,0.55396225]
[1760061854332,0.1960338,1249.2,1247.7,0.59832821]
[1760061854530,0.1960338,1249.2,1247.8,0.5545159]
[1760061854733,0.1960338,1249.2,1247.9,0.5545159]
[1760061854929,0.1960338,1249.2,1248.0,0.5545159]
[1760061855129,0.1960338,1249.2,1248.1,0.5545159]
[1760061855433,0.1960338,1249.2,1248.2,0.5545159]
[1760061855634,0.1960338,1249.2,1248.3,0.5545159]
[1760061855831,0.1960338,1249.2,1248.4,0.5545159]
[1760061856031,0.1960338,1249.2,1248.5,0.5545159]
[1760061856231,0.1960338,1249.2,1248.6,0.5545159]
[1760061856432,0.1960338,1249.2,1248.0,0.59832821]
[1760061856734,0.1960338,1249.2,1248.1,0.5549354]
[1760061856934,0.1960338,1249.2,1248.2,0.5549354]
[1760061857134,0.1960338,1249.2,1248.3,0.5549354]
[1760061857333,0.1960338,1249.2,1248.4,0.5549354]
[1760061857532,0.1960338,1249.2,1248.5,0.5549354]
[1760061857731,0.1960338,1249.2,1248.6,0.5549354]
[1760061857932,0.1960338,1249.2,1248.7,0.5549354]
[1760061858132,0.1960338,1249.2,1248.3,0.59832821]
[1760061858331,0.1960338,1249.2,1248.4,0.55497523]
[1760061858531,0.1960338,1249.2,1248.5,0.55497523]
[1760061858835,0.1960338,1249.2,1248.6,0.55497523]
[1760061859033,0.1960338,1249.2,1248.7,0.55497523]
[1760061859231,0.1960338,1249.2,1248.3,0.59832821]
[1760061859435,0.1960338,1249.2,1248.4,0.5549807]
[1760061859638,0.1960338,1249.2,1248.5,0.5549807]
[1760061859835,0.1960338,1249.2,1248.6,0.5549807]
[1760061860035,0.1960338,1249.2,1248.7,0.5549807]
[1760061860234,0.1960338,1249.2,1248.3,0.59832821]
[1760061860437,0.1960338,1249.2,1248.4,0.55498337]
[1760061860638,0.1960338,1249.2,1248.5,0.55498337]
[1760061860834,0.1960338,1249.2,1248.6,0.55498337]
[1760061861039,0.1960338,1249.2,1248.1,0.59832821]
[1760061861233,0.1960338,1249.2,1248.2,0.5550673]
[1760061861436,0.1960338,1249.2,1248.3,0.5550673]
[1760061861737,0.1960338,1249.2,1248.4,0.5550673]
[1760061861939,0.1960338,1249.2,1248.5,0.5550673]
[1760061862139,0.1960338,1249.2,1248.6,0.5550673]
[1760061862340,0.1960338,1249.2,1248.1,0.59832821]
[1760061862541,0.1960338,1249.2,1248.2,0.55504813]
[1760061862836,0.1960338,1249.2,1248.3,0.55504813]
[1760061863041,0.1960338,1249.2,1248.4,0.55504813]
[1760061863341,0.1960338,1249.2,1248.5,0.55504813]
[1760061863542,0.1960338,1249.2,1248.1,0.59832821]
[1760061863543,0.1960338,1249.2,1248.6,0.55504813]
[1760061863838,0.1960338,1249.2,1248.7,0.55504813]
[1760061864041,0.1960338,1249.2,1248.1,0.59832821]
[1760061864341,0.1960338,1249.2,1248.2,0.55504163]
[1760061864541,0.1960338,1249.2,1248.3,0.55504163]
[1760061864741,0.1960338,1249.2,1248.4,0.55504163]
[1760061864941,0.1960338,1249.2,1248.5,0.55504163]
[1760061865141,0.1960338,1249.2,1248.6,0.55504163]
[1760061865342,0.1960338,1249.2,1248.2,0.59832821]
[1760061865641,0.1960338,1249.2,1248.3,0.55502273]
[1760061865841,0.1960338,1249.2,1248.4,0.55502273]
[1760061866042,0.1960338,1249.2,1248.5,0.55502273]
[1760061866243,0.1960338,1249.2,1248.6,0.55502273]
[1760061866444,0.1960338,1249.2,1247.8,0.19928769]
[1760061866445,0.1960338,1249.2,1248.0,0.79758299]
[1760061866739,0.1960338,1249.2,1248.2,0.59405126]
[1760061866942,0.1960338,1249.2,1248.3,0.5550185]
[1760061867143,0.1960338,1249.2,1248.4,0.5550185]
[1760061867440,0.1960338,1249.2,1248.5,0.5550185]
[1760061867644,0.1960338,1249.2,1247.9,0.59405126]
[1760061867946,0.1960338,1249.2,1248.0,0.55511017]
[1760061868145,0.1960338,1249.2,1248.1,0.55511017]
[1760061868445,0.1960338,1249.2,1248.2,0.55511017]
[1760061868746,0.1960338,1249.2,1248.3,0.55511017]
[1760061868943,0.1960338,1249.2,1248.4,0.55511017]
[1760061869246,0.1960338,1249.2,1247.9,0.59405126]
[1760061869442,0.1960338,1249.2,1248.0,0.55524425]
[1760061869646,0.1960338,1249.2,1248.1,0.55524425]
[1760061869846,0.1960338,1249.2,1248.2,0.55524425]
[1760061870043,0.1960338,1249.2,1248.3,0.55524425]
[1760061870343,0.1960338,1249.2,1248.4,0.55524425]
[1760061870543,0.1960338,1249.2,1247.9,0.59405126]
[1760061870747,0.1960338,1249.2,1248.0,0.55541534]
[1760061871047,0.1960338,1249.2,1248.1,0.55541534]
[1760061871344,0.1960338,1249.2,1248.2,0.55541534]
[1760061871548,0.1960338,1249.2,1248.3,0.55541534]
[1760061871748,0.1960338,1249.2,1248.4,0.55541534]
[1760061871944,0.1960338,1249.2,1247.9,0.59405126]
[1760061872251,0.13934799,1249.0,1248.0,0.55559045]
[1760061872445,0.13934799,1249.0,1248.1,0.55559045]
[1760061872646,0.13934799,1249.0,1248.2,0.55559045]
[1760061872844,0.13934799,1249.0,1248.3,0.55559045]
[1760061873044,0.13934799,1249.0,1248.4,0.55559045]
[1760061873244,0.13934799,1249.0,1247.9,0.59405126]
[1760061873448,0.13934799,1249.0,1248.0,0.55581404]
[1760061873648,0.13934799,1249.0,1248.1,0.55581404]
[1760061873844,0.13934799,1249.0,1248.2,0.55581404]
[1760061874049,0.13934799,1249.0,1248.3,0.55581404]
[1760061874247,0.13934799,1249.0,1247.9,0.59405126]
[1760061874248,0.13934799,1249.0,1248.4,0.55581404]
[1760061874445,0.13934799,1249.0,1247.9,0.59405126]
[1760061874745,0.13934799,1249.0,1248.0,0.55588553]
[1760061874945,0.13934799,1249.0,1248.1,0.55588553]
[1760061875144,0.13934799,1249.0,1248.2,0.55588553]
[1760061875447,0.13934799,1249.0,1248.3,0.55588553]
[1760061875648,0.13934799,1249.0,1247.9,0.59405126]
[1760061875944,0.13934799,1249.0,1248.0,0.55597116]
[1760061876244,0.13934799,1249.0,1248.1,0.55597116]
[1760061876443,0.13934799,1249.0,1248.2,0.55597116]
[1760061876648,0.13934799,1249.0,1248.3,0.55597116]
[1760061876849,0.13934799,1249.0,1247.8,0.59405126]
[1760061877047,0.13934799,1249.0,1247.9,0.55607561]
[1760061877250,0.13934799,1249.0,1248.0,0.55607561]
[1760061877449,0.13934799,1249.0,1248.1,0.55607561]
[1760061877649,0.13934799,1249.0,1248.2,0.55607561]
[1760061877852,0.13934799,1249.0,1248.3,0.55607561]
[1760061878152,0.13934799,1249.0,1247.8,0.59405126]
[1760061878346,0.13934799,1249.0,1247.9,0.55624713]
[1760061878545,0.13934799,1249.0,1248.0,0.55624713]
[1760061878746,0.13934799,1249.0,1248.1,0.55624713]
[1760061878947,0.13934799,1249.0,1248.2,0.55624713]
[1760061879146,0.13934799,1249.0,1248.3,0.55624713]
[1760061879450,0.13934799,1249.0,1247.8,0.59405126]
[1760061879649,0.13934799,1249.0,1247.9,0.55632755]
[1760061879947,0.13934799,1249.0,1248.0,0.55632755]
[1760061880149,0.13934799,1249.0,1248.1,0.55632755]
[1760061880350,0.13934799,1249.0,1248.2,0.55632755]
[1760061880551,0.13934799,1249.0,1247.6,0.59405126]
[1760061880850,0.13934799,1249.0,1247.7,0.55646175]
[1760061881050,0.13934799,1249.0,1247.8,0.55646175]
[1760061881350,0.13934799,1249.0,1247.9,0.55646175]
[1760061881550,0.13934799,1249.0,1248.0,0.55646175]
[1760061881749,0.13934799,1249.0,1247.5,0.59405126]
[1760061881947,0.13934799,1249.0,1247.6,1.15054639]
[1760061882145,0.13934799,1249.0,1247.7,0.55649513]
[1760061882349,0.13934799,1249.0,1247.8,0.55649513]
[1760061882548,0.13934799,1249.0,1247.3,0.59405126]
[1760061882850,0.13934799,1249.0,1247.4,0.55653685]
[1760061883047,0.13934799,1249.0,1247.5,0.55653685]
[1760061883245,0.13934799,1249.0,1247.6,0.55653685]
[1760061883446,0.13934799,1249.0,1247.7,0.55653685]
[1760061883649,0.13934799,1249.0,1247.3,0.59405126]
[1760061883851,0.13934799,1249.0,1247.4,0.55652252]
[1760061884051,0.13934799,1249.0,1247.5,0.55652252]
[1760061884347,0.13934799,1249.0,1247.6,0.55652252]
[1760061884646,0.13934799,1249.0,1247.7,0.55652252]
[1760061884847,0.13934799,1249.0,1247.3,0.59405126]
[1760061885050,0.13934799,1249.0,1247.4,0.55647194]
[1760061885250,0.13934799,1249.0,1247.5,0.55647194]
[1760061885451,0.13934799,1249.0,1247.6,0.55647194]
[1760061885650,0.13934799,1249.0,1247.7,0.55647194]
[1760061885849,0.13934799,1249.0,1247.3,0.59405126]
[1760061886049,0.13934799,1249.0,1247.4,0.5564217]
[1760061886247,0.13934799,1249.0,1247.5,0.5564217]
[1760061886552,0.13934799,1249.0,1247.6,0.5564217]
[1760061886748,0.13934799,1249.0,1247.7,0.5564217]
[1760061886953,0.13934799,1249.0,1247.3,0.59405126]
[1760061886954,0.13934799,1249.0,1247.8,0.5564217]
[1760061887253,0.13934799,1249.0,1247.3,0.59405126]
[1760061887553,0.13934799,1249.0,1247.4,0.5564289]
[1760061887848,0.13934799,1249.0,1247.5,0.5564289]
[1760061888054,0.13934799,1249.0,1247.6,0.5564289]
[1760061888253,0.13934799,1249.0,1247.7,0.5564289]
[1760061888453,0.13934799,1249.0,1247.8,0.5564289]
[1760061888750,0.13934799,1249.0,1247.9,0.5564289]
[1760061888951,0.13934799,1249.0,1247.4,0.59405126]
[1760061889252,0.13934799,1249.0,1247.1,0.99687068]
[1760061889253,0.13934799,1249.0,1247.5,0.55629171]
[1760061889448,0.13934799,1249.0,1247.6,0.55629171]
[1760061889649,0.13934799,1249.0,1247.7,0.55629171]
[1760061889853,0.13934799,1249.0,1247.8,0.55629171]
[1760061890053,0.13934799,1249.0,1247.9,0.55629171]
[1760061890353,0.13934799,1249.0,1247.4,0.59405126]
[1760061890655,0.13934799,1249.0,1247.5,0.55669981]
[1760061890854,0.13934799,1249.0,1247.6,0.55669981]
[1760061891054,0.13934799,1249.0,1247.7,0.55669981]
[1760061891351,0.13934799,1249.0,1247.8,0.55669981]
[1760061891653,0.13934799,1249.0,1247.9,0.55669981]
[1760061891855,0.13934799,1249.0,1247.3,0.59405126]
[1760061892055,0.13934799,1249.0,1247.4,0.55682737]
[1760061892355,0.13934799,1249.0,1247.5,0.55682737]
[1760061892652,0.13934799,1249.0,1247.6,0.55682737]
[1760061892852,0.13934799,1249.0,1247.7,0.55682737]
[1760061893056,0.13934799,1249.0,1247.8,0.55682737]
[1760061893356,0.13934799,1249.0,1247.9,0.55682737]
[1760061893555,0.13934799,1249.0,1247.3,0.59405126]
[1760061893753,0.13934799,1249.0,1247.4,0.55698106]
[1760061893953,0.13934799,1249.0,1247.5,0.55698106]
[1760061894152,0.13934799,1249.0,1247.6,0.55698106]
[1760061894356,0.13934799,1249.0,1247.7,0.55698106]
[1760061894553,0.13934799,1249.0,1247.8,0.55698106]
[1760061894755,0.13934799,1249.0,1247.1,0.59405126]
[1760061894954,0.13934799,1249.0,1247.2,0.55711288]
[1760061895157,0.13934799,1249.0,1247.3,0.55711288]
[1760061895457,0.13934799,1249.0,1247.4,0.55711288]
[1760061895757,0.13934799,1249.0,1247.5,0.55711288]
[1760061895958,0.13934799,1249.0,1247.6,0.55711288]
[1760061896157,0.13934799,1249.0,1247.0,0.59405126]
[1760061896457,0.13934799,1249.0,1247.1,0.5571537]
[1760061896651,0.13934799,1249.0,1247.2,0.5571537]
[1760061896854,0.13934799,1249.0,1247.3,0.5571537]
[1760061897053,0.13934799,1249.0,1247.2,0.59405126]
[1760061897054,0.13934799,1249.0,1247.4,0.5571537]
[1760061897253,0.13934799,1249.0,1247.5,0.5571537]
[1760061897457,0.13934799,1249.0,1247.6,0.5571537]
[1760061897755,0.13934799,1249.0,1247.2,0.59405126]
[1760061897756,0.13934799,1249.0,1247.7,0.5571537]
[1760061897955,0.13934799,1249.0,1247.2,0.59405126]
[1760061897956,0.13934799,1249.0,1247.1,0.59405126]
[1760061898156,0.13934799,1249.0,1247.2,0.55718448]
[1760061898356,0.13934799,1249.0,1247.3,0.55718448]
[1760061898560,0.13934799,1249.0,1247.4,0.55718448]
[1760061898761,0.13934799,1249.0,1247.5,0.55718448]
[1760061898961,0.13934799,1249.0,1247.6,0.55718448]
[1760061899159,0.13934799,1249.0,1247.1,0.59405126]
[1760061899362,0.13934799,1249.0,1247.2,0.55719471]
[1760061899562,0.13934799,1249.0,1247.3,0.55719471]
[1760061899858,0.13934799,1249.0,1247.4,0.55719471]
[1760061900158,0.13934799,1249.0,1247.5,0.55719471]
[1760061900357,0.13934799,1249.0,1247.6,0.55719471]
[1760061900562,0.13934799,1249.0,1247.1,0.59405126]
[1760061900759,0.13934799,1249.0,1247.2,0.55719471]
[1760061900963,0.13934799,1249.0,1247.3,0.55719471]
[1760061901259,0.13934799,1249.0,1247.4,0.55719471]
[1760061901458,0.13934799,1249.0,1247.5,0.55719471]
[1760061901660,0.13934799,1249.0,1247.6,0.55719471]
[1760061901960,0.13934799,1249.0,1247.0,0.59405126]
[1760061902164,0.13934799,1249.0,1247.1,0.55712632]
[1760061902460,0.13934799,1249.0,1247.2,0.55712632]
[1760061902760,0.13934799,1249.0,1247.3,0.55712632]
[1760061902963,0.13934799,1249.0,1247.4,0.55712632]
[1760061903163,0.13934799,1249.0,1247.5,0.55712632]
[1760061903459,0.13934799,1249.0,1247.6,0.55712632]
[1760061903760,0.13934799,1249.0,1247.0,0.59405126]
[1760061903959,0.13934799,1249.0,1247.1,0.55702338]
[1760061904159,0.13934799,1249.0,1247.2,0.55702338]
[1760061904362,0.13934799,1249.0,1247.3,0.55702338]
[1760061904561,0.13934799,1249.0,1247.4,0.55702338]
[1760061904760,0.13934799,1249.0,1247.5,0.55702338]
[1760061905060,0.13934799,1249.0,1247.6,0.55702338]
[1760061905261,0.13934799,1249.0,1247.1,0.59405126]
[1760061905460,0.19500341,1247.2,1246.9,0.99687068]
[1760061905664,0.19500341,1247.2,1247.0,0.5568365]
[1760061905861,0.19500341,1247.2,1247.1,0.5568365]
[1760061906061,0.19500341,1247.2,1247.1,1.35441949]
[1760061906560,0.19500341,1247.2,1247.1,1.55370718]
[1760061906870,0.19500341,1247.2,1247.1,0.75612419]
[1760061907565,0.19500341,1247.2,1247.1,1.55370718]
[1760061908562,0.19500341,1247.2,1247.1,0.5568365]
[1760061908563,0.39008009,1247.2,1247.1,0.5568365]
[1760061908767,0.19500341,1247.2,1247.1,0.5568365]
[1760061909069,0.19500341,1247.2,1247.1,1.35441949]
[1760061909562,0.19500341,1247.2,1247.1,0.75612419]
[1760061910067,0.19500341,1247.2,1247.1,1.55064466]
[1760061911570,0.19500341,1247.2,1247.1,0.5568365]
[1760061913676,0.19500341,1247.2,1247.1,1.74842076]
[1760061915577,0.19500341,1247.2,1247.1,1.19158426]
[1760061915877,0.19500341,1247.2,1247.1,0.55675846]
[1760061916580,0.19500341,1247.2,1246.9,1.19158426]
[1760061917982,0.19500341,1247.2,1247.0,0.55690006]
[1760061924385,0.19500341,1247.2,1247.1,0.55782327]
[1760061939996,0.19500341,1247.2,1247.0,0.55690006]
[1760061956800,0.19500341,1247.2,1247.1,0.55590655]
[1760061958905,0.19500341,1247.2,1247.0,0.55690006]
[1760061964308,0.19500341,1247.2,1247.1,0.55593885]
[1760061973416,0.19500341,1247.2,1247.0,0.55690006]
[1760061981322,0.19500341,1247.2,1247.0,0.41731648]
[1760061984224,0.33455704,1247.2,1247.0,0.41731648]
[1760062032962,0.13955363,1247.2,1247.0,0.41731648]
[1760062062396,1.95306127,1249.4,1247.0,0.27779251]
[1760062062699,1.95306127,1248.9,1247.0,0.27779251]
[1760062063199,1.95306127,1248.8,1247.0,0.27779251]
[1760062063499,1.95306127,1248.7,1247.0,0.27779251]
[1760062064099,1.95306127,1248.8,1247.0,0.27779251]
[1760062065400,0.13959953,1248.4,1247.0,0.27779251]
[1760062105737,1.95306127,1248.2,1247.0,0.27779251]
[1760062106136,1.95306127,1247.8,1247.0,0.27779251]
[1760062106835,1.95306127,1248.0,1247.0,0.27779251]
[1760062107337,1.95306127,1247.9,1247.0,0.27779251]
[1760062107745,1.95306127,1248.1,1247.0,0.27779251]
[1760062108340,1.95306127,1248.0,1247.0,0.27779251]
[1760062108845,1.95306127,1248.1,1247.0,0.27779251]
[1760062109345,0.13959953,1248.4,1247.0,0.27779251]
[1760062112145,1.95306127,1248.0,1247.0,0.27779251]
[1760062112547,1.95306127,1247.7,1247.0,0.27779251]
[1760062113545,1.95306127,1247.5,1244.9,0.19895052]
[1760062113746,0.19695967,1245.2,1244.9,0.19895052]
[1760062115849,0.19695967,1245.2,1245.1,0.59608692]
[1760062117044,0.19695967,1245.2,1245.0,0.59608692]
[1760062117444,0.19695967,1245.2,1245.1,0.59608692]
[1760062121553,1.95306127,1248.1,1244.9,0.59608692]
[1760062121848,0.19692879,1245.1,1244.9,0.59608692]
[1760062122448,0.19692879,1245.0,1244.9,0.59608692]
[1760062122653,0.19692879,1245.0,1244.8,0.79503744]
[1760062123854,0.19692879,1245.0,1244.9,0.59608692]
[1760062125253,0.19692879,1245.0,1244.8,0.59608692]
[1760062125452,0.19692879,1245.0,1244.9,0.55548883]
[1760062125953,1.95306127,1248.0,1244.9,0.55548883]
[1760062126154,1.95306127,1247.7,1245.2,0.59983544]
[1760062126453,1.95306127,1247.7,1245.3,1.15532427]
[1760062126652,1.95306127,1247.8,1245.4,0.55548883]
[1760062126850,1.95306127,1247.8,1245.5,0.55548883]
[1760062127055,1.95306127,1247.9,1245.6,0.55548883]
[1760062127256,1.95306127,1247.9,1245.7,0.55548883]
[1760062127556,1.95306127,1247.9,1245.3,0.59983544]
[1760062127852,1.95306127,1247.9,1245.4,0.55543589]
[1760062128151,1.95306127,1247.9,1245.5,0.55543589]